[Event "Festival Szmetan-Giardelli 2018"]
[Site "Buenos Aires"]
[Date "2018.12.06"]
[Round "2"]
[White "Darcyl, Tomas"]
[Black "Granda Zuniga, Julio E"]
[Result "1/2-1/2"]
[ECO "A07"]
[WhiteElo "2366"]
[BlackElo "2650"]
[Annotator "RC"]
[PlyCount "47"]
[EventDate "2018.12.04"]
[EventType "tourn"]
[EventCountry "ARG"]
[SourceTitle "playchess.com"]
[Source "ChessBase"]
[SourceQuality "1"]
[TimeControl "40/5400+30:1800+30"]

1. Nf3 {[%emt 0:06:03]} d5 {[%emt 0:00:00]} 2. g3 {[%emt 0:00:24]} c6 {[%emt 0:00:13]} 3. Bg2 {[%emt 0:00:18]} Bg4 {[%emt 0:00:22]} 4. O-O {[%emt 0:02:51]} Nd7 {[%emt 0:00:18]} 5. d3 {[%emt 0:01:17]} e5 {[%emt 0:04:16]} 6. e4 {[%emt 0:01:20]} dxe4 {[%emt 0:01:02]} 7. dxe4 {[%emt 0:00:09]} f6 {[%emt 0:00:25]} 8. Qe2 {[%emt 0:04:25]} Bc5 {[%emt 0:02:19]} 9. a4 {[%emt 0:02:37]} a5 {[%emt 0:01:09]} 10. Na3 {[%emt 0:01:10]} Ne7 {[%emt 0:01:32]} 11. Rd1 {[%emt 0:06:46]} Nc8 {[%emt 0:07:02]} 12. Nc4 {[%emt 0:12:25]} O-O {[%emt 0:02:34]} 13. Ne3 {[%emt 0:02:55]} Be6 {[%emt 0:00:10]} 14. Qf1 {[%emt 0:00:21]} Ncb6 {[%emt 0:02:48]} 15. Bh3 {[%emt 0:03:06]} Bf7 {[%emt 0:04:46]} 16. Bf5 {[%emt 0:51:53]} g6 {[%emt 1:09:04]} 17. Bxd7 {[%emt 0:00:30]} Nxd7 {[%emt 0:00:30]} 18. Qh3 {[%emt 0:00:30]} Be8 {[%emt 0:00:30]} 19. Qe6+ {[%emt 0:00:30]} Kh8 {[%emt 0:00:30]} 20. Nxe5 {[%emt 0:00:30]} fxe5 {[%emt 0:00:30]} 21. Rxd7 {[%emt 0:00:30]} Qxd7 {[%emt 0:00:30]} 22. Qxe5+ {[%emt 0:00:30]} Kg8 {[%emt 0:00:30]} 23. Qxc5 {[%emt 0:00:30]} Kh8 {[%emt 0:00:30]} 24. Ng4 {[%emt 0:00:30]} 1/2-1/2

[Event "Festival Szmetan-Giardelli 2018"]
[Site "Buenos Aires"]
[Date "2018.12.09"]
[Round "6"]
[White "Bacallao Alonso, Yusnel"]
[Black "Iturrizaga Bonelli, Eduardo"]
[Result "1/2-1/2"]
[ECO "B19"]
[WhiteElo "2582"]
[BlackElo "2628"]
[Annotator "ChessBase"]
[PlyCount "34"]
[EventDate "2018.12.04"]
[EventType "tourn"]
[EventCountry "ARG"]
[SourceTitle "playchess.com"]
[Source "ChessBase"]
[SourceQuality "1"]
[TimeControl "40/5400+30:1800+30"]

1. e4 {[%emt 0:00:57]} c6 {[%emt 0:00:37]} 2. d4 {[%emt 0:03:12]} d5 {[%emt 0:00:08]} 3. Nc3 {[%emt 0:00:13]} dxe4 {[%emt 0:00:28]} 4. Nxe4 {[%emt 0:00:07]} Bf5 {[%emt 0:04:26]} 5. Ng3 {[%emt 0:00:10]} Bg6 {[%emt 0:00:07]} 6. h4 {[%emt 0:01:08]} h6 {[%emt 0:00:10]} 7. Nf3 {[%emt 0:00:28]} Nd7 {[%emt 0:03:51]} 8. h5 {[%emt 0:00:22]} Bh7 {[%emt 0:00:06]} 9. Bd3 {[%emt 0:00:05]} Bxd3 {[%emt 0:00:08]} 10. Qxd3 {[%emt 0:00:01]} e6 {[%emt 0:01:19]} 11. Bd2 {[%emt 0:05:49]} Ngf6 {[%emt 0:00:54]} 12. O-O-O {[%emt 0:01:58]} Be7 {[%emt 0:00:18]} 13. Ne4 {[%emt 0:02:36]} Nxe4 {[%emt 0:00:08]} 14. Qxe4 {[%emt 0:00:08]} Nf6 {[%emt 0:00:08]} 15. Qe2 {[%emt 0:00:05]} Qd5 {[%emt 0:00:05]} 16. Kb1 {[%emt 0:00:42]} Qe4 {[%emt 0:00:10]} 17. Qxe4 {[%emt 0:01:29]} Nxe4 {[%emt 0:00:07]} 1/2-1/2

[Event "Festival Szmetan-Giardelli 2018"]
[Site "Buenos Aires"]
[Date "2018.12.09"]
[Round "6"]
[White "Slipak, Sergio"]
[Black "Granda Zuniga, Julio E"]
[Result "1/2-1/2"]
[ECO "E21"]
[WhiteElo "2421"]
[BlackElo "2650"]
[Annotator "RC"]
[PlyCount "31"]
[EventDate "2018.12.04"]
[EventType "tourn"]
[EventCountry "ARG"]
[SourceTitle "playchess.com"]
[Source "ChessBase"]
[SourceQuality "1"]
[TimeControl "40/5400+30:1800+30"]

1. d4 {[%emt 0:00:00]} Nf6 {[%emt 0:00:00]} 2. c4 {[%emt 0:00:00]} e6 {[%emt 0:00:00]} 3. Nc3 {[%emt 0:00:00]} Bb4 {[%emt 0:00:04]} 4. Bd2 {[%emt 0:00:01]} O-O {[%emt 0:07:07]} 5. Nf3 {[%emt 0:00:17]} d6 {[%emt 0:01:59]} 6. a3 {[%emt 0:01:59]} Bxc3 {[%emt 0:00:06]} 7. Bxc3 {[%emt 0:00:07]} Ne4 {[%emt 0:00:44]} 8. Rc1 {[%emt 0:01:12]} b6 {[%emt 0:01:28]} 9. g3 {[%emt 0:01:11]} Bb7 {[%emt 0:01:31]} 10. Bg2 {[%emt 0:00:15]} Nd7 {[%emt 0:00:32]} 11. O-O {[%emt 0:00:26]} Qe7 {[%emt 0:00:18]} 12. b4 {[%emt 0:05:51]} Nxc3 {[%emt 0:01:45]} 13. Rxc3 {[%emt 0:00:09]} a5 {[%emt 0:00:06]} 14. Qc2 {[%emt 0:03:18]} Nf6 {[%emt 0:03:28]} 15. Nd2 {[%emt 0:02:38]} Bxg2 {[%emt 0:00:12]} 16. Kxg2 {[%emt 0:00:11]} 1/2-1/2